Workbook

Sheet About
A1: About
K11: www.solvermax.com
K15: Key
K16: Data
K17: Constant
K18: Highlight
K19: Error
K20: Solver variable
K21: Pasted values
K23: Version
K24: v 1.1
K25: 2021-11-19

Sheet Model
A1: Team allocation, given multiple attributes
A3: Assumptions | O3: Description
B5: Attributes | H5: Team
B6: Experience | C6: Qualifications | D6: Tenure | E6: Overall | H6: 1 | I6: 2 | J6: 3 | K6: 4 | L6: 5 | M6: Total
A7: Weight | B7: 5 | C7: 2 | D7: 1 | E7: 10 | G7: Team size | H7: 6 | I7: 6 | J7: 6 | K7: 6 | L7: 6 | M7: =SUM(H7:L7) -> 30
A9: Scores | B9: Attributes
A10: Person | B10: =B6 -> Experience | C10: =C6 -> Qualifications | D10: =D6 -> Tenure | E10: =E6 -> Overall
A11: Aila | B11: 48 | C11: 33 | D11: 41 | E11: =SUM(B11:D11) -> 122
A12: Allister | B12: 90 | C12: 46 | D12: 11 | E12: 147
A13: Arlie | B13: 40 | C13: 36 | D13: 62 | E13: 138
A14: Babette | B14: 98 | C14: 19 | D14: 45 | E14: 162
A15: Caresa | B15: 38 | C15: 43 | D15: 33 | E15: 114
A16: Chalmers | B16: 93 | C16: 43 | D16: 59 | E16: 195
A17: Charin | B17: 28 | C17: 42 | D17: 99 | E17: 169
A18: Elden | B18: 78 | C18: 19 | D18: 66 | E18: 163
A19: Gian | B19: 37 | C19: 34 | D19: 86 | E19: 157
A20: Heloise | B20: 30 | C20: 95 | D20: 45 | E20: 170
A21: Job | B21: 10 | C21: 81 | D21: 51 | E21: 142
A22: Kaitlin | B22: 67 | C22: 42 | D22: 26 | E22: 135
A23: Katalin | B23: 75 | C23: 19 | D23: 94 | E23: 188
A24: Lorain | B24: 79 | C24: 3 | D24: 35 | E24: 117
A25: Lucine | B25: 31 | C25: 50 | D25: 86 | E25: 167
A26: Mari | B26: 26 | C26: 14 | D26: 74 | E26: 114
A27: Marilin | B27: 93 | C27: 7 | D27: 21 | E27: 121
A28: Maurise | B28: 70 | C28: 22 | D28: 76 | E28: 168
A29: Mella | B29: 80 | C29: 72 | D29: 98 | E29: 250
A30: Nessa | B30: 3 | C30: 90 | D30: 31 | E30: 124
A31: Rosaleen | B31: 18 | C31: 47 | D31: 56 | E31: 121
A32: Smith | B32: 76 | C32: 65 | D32: 79 | E32: 220
A33: Stearne | B33: 16 | C33: 59 | D33: 3 | E33: 78
A34: Tab | B34: 64 | C34: 33 | D34: 23 | E34: 120
A35: Vevay | B35: 35 | C35: 98 | D35: 29 | E35: 162
A36: Vittoria | B36: 31 | C36: 77 | D36: 86 | E36: 194
A37: Washington | B37: 31 | C37: 42 | D37: 58 | E37: 131
A38: Wenona | B38: 48 | C38: 77 | D38: 13 | E38: 138
A39: Wes | B39: 73 | C39: 15 | D39: 10 | E39: 98
A40: Zebadiah | B40: 48 | C40: 33 | D40: 52 | E40: 133
A41: Total | B41: =SUM(B11:B40) -> 1554 | C41: =SUM(C11:C40) -> 1356 | D41: =SUM(D11:D40) -> 1548 | E41: =SUM(E11:E40) -> 4458
A43: Variables | O43: Intermediate calculations | U43: Result
B45: Team's skills | G45: Allocation | H45: Team | O45: Score | P45: Attributes | U45: Objective
A46: Bound | B46: =B6 -> Experience | C46: =C6 -> Qualifications | D46: =D6 -> Tenure | E46: =E6 -> Overall | G46: =A10 -> Person | H46: 1 | I46: 2 | J46: 3 | K46: 4 | L46: 5 | M46: Total | O46: Team | P46: =B6 -> Experience | Q46: =C6 -> Qualifications | R46: =D6 -> Tenure | S46: =E6 -> Overall | U46: Total | V46: =SUM(B50:E50) -> 310
A47: Min | B47: 300 | C47: 250 | D47: 285 | E47: 887 | G47: Aila | H47: 0 | I47: 0 | J47: 1 | K47: 0 | L47: 0 | M47: =SUM(H47:L47) -> 1 | O47: 1 | P47: =SUMPRODUCT(B$11:B$40,$H$47:$H$76) -> 300 | Q47: =SUMPRODUCT(C$11:C$40,$H$47:$H$76) -> 257 | R47: =SUMPRODUCT(D$11:D$40,$H$47:$H$76) -> 330 | S47: =SUM(P47:R47) -> 887
A48: Max | B48: 319 | C48: 290 | D48: 330 | E48: 896 | G48: Allister | H48: 0 | I48: 0 | J48: 0 | K48: 1 | L48: 0 | M48: 1 | O48: 2 | P48: =SUMPRODUCT(B$11:B$40,$I$47:$I$76) -> 310 | Q48: =SUMPRODUCT(C$11:C$40,$I$47:$I$76) -> 250 | R48: =SUMPRODUCT(D$11:D$40,$I$47:$I$76) -> 327 | S48: =SUM(P48:R48) -> 887
A49: Range | B49: =B48-B47 -> 19 | C49: =C48-C47 -> 40 | D49: =D48-D47 -> 45 | E49: =E48-E47 -> 9 | G49: Arlie | H49: 0 | I49: 0 | J49: 0 | K49: 0 | L49: 1 | M49: 1 | O49: 3 | P49: =SUMPRODUCT(B$11:B$40,$J$47:$J$76) -> 319 | Q49: =SUMPRODUCT(C$11:C$40,$J$47:$J$76) -> 290 | R49: =SUMPRODUCT(D$11:D$40,$J$47:$J$76) -> 285 | S49: =SUM(P49:R49) -> 894
A50: Weighted | B50: =B49*B7 -> 95 | C50: =C49*C7 -> 80 | D50: 45 | E50: 90 | G50: Babette | H50: 1 | I50: 0 | J50: 0 | K50: 0 | L50: 0 | M50: 1 | O50: 4 | P50: =SUMPRODUCT(B$11:B$40,$K$47:$K$76) -> 309 | Q50: =SUMPRODUCT(C$11:C$40,$K$47:$K$76) -> 286 | R50: =SUMPRODUCT(D$11:D$40,$K$47:$K$76) -> 301 | S50: =SUM(P50:R50) -> 896
G51: Caresa | H51: 0 | I51: 0 | J51: 0 | K51: 0 | L51: 1 | M51: 1 | O51: 5 | P51: =SUMPRODUCT(B$11:B$40,$L$47:$L$76) -> 316 | Q51: =SUMPRODUCT(C$11:C$40,$L$47:$L$76) -> 273 | R51: =SUMPRODUCT(D$11:D$40,$L$47:$L$76) -> 305 | S51: =SUM(P51:R51) -> 894
G52: Chalmers | H52: 0 | I52: 0 | J52: 0 | K52: 0 | L52: 1 | M52: 1
G53: Charin | H53: 0 | I53: 1 | J53: 0 | K53: 0 | L53: 0 | M53: 1 | O53: Score min | P53: Attributes
G54: Elden | H54: 0 | I54: 0 | J54: 0 | K54: 1 | L54: 0 | M54: 1 | O54: =O46 -> Team | P54: =B6 -> Experience | Q54: =C6 -> Qualifications | R54: =D6 -> Tenure | S54: =E6 -> Overall
G55: Gian | H55: 1 | I55: 0 | J55: 0 | K55: 0 | L55: 0 | M55: 1 | O55: 1 | P55: =B$47 -> 300 | Q55: 250 | R55: 285 | S55: 887
G56: Heloise | H56: 0 | I56: 1 | J56: 0 | K56: 0 | L56: 0 | M56: 1 | O56: 2 | P56: 300 | Q56: 250 | R56: 285 | S56: 887
G57: Job | H57: 0 | I57: 1 | J57: 0 | K57: 0 | L57: 0 | M57: 1 | O57: 3 | P57: 300 | Q57: 250 | R57: 285 | S57: 887
G58: Kaitlin | H58: 0 | I58: 0 | J58: 0 | K58: 0 | L58: 1 | M58: 1 | O58: 4 | P58: 300 | Q58: 250 | R58: 285 | S58: 887
G59: Katalin | H59: 0 | I59: 0 | J59: 0 | K59: 0 | L59: 1 | M59: 1 | O59: 5 | P59: 300 | Q59: 250 | R59: 285 | S59: =E$47 -> 887
G60: Lorain | H60: 0 | I60: 1 | J60: 0 | K60: 0 | L60: 0 | M60: 1
G61: Lucine | H61: 0 | I61: 0 | J61: 0 | K61: 1 | L61: 0 | M61: 1 | O61: Score max | P61: Attributes
G62: Mari | H62: 1 | I62: 0 | J62: 0 | K62: 0 | L62: 0 | M62: 1 | O62: =O46 -> Team | P62: =B6 -> Experience | Q62: =C6 -> Qualifications | R62: =D6 -> Tenure | S62: =E6 -> Overall
G63: Marilin | H63: 0 | I63: 1 | J63: 0 | K63: 0 | L63: 0 | M63: 1 | O63: 1 | P63: =B$48 -> 319 | Q63: 290 | R63: 330 | S63: 896
G64: Maurise | H64: 0 | I64: 1 | J64: 0 | K64: 0 | L64: 0 | M64: 1 | O64: 2 | P64: 319 | Q64: 290 | R64: 330 | S64: 896
G65: Mella | H65: 0 | I65: 0 | J65: 1 | K65: 0 | L65: 0 | M65: 1 | O65: 3 | P65: 319 | Q65: 290 | R65: 330 | S65: 896
G66: Nessa | H66: 0 | I66: 0 | J66: 0 | K66: 0 | L66: 1 | M66: 1 | O66: 4 | P66: 319 | Q66: 290 | R66: 330 | S66: 896
G67: Rosaleen | H67: 0 | I67: 0 | J67: 0 | K67: 1 | L67: 0 | M67: 1 | O67: 5 | P67: 319 | Q67: 290 | R67: 330 | S67: 896
G68: Smith | H68: 0 | I68: 0 | J68: 0 | K68: 1 | L68: 0 | M68: 1
G69: Stearne | H69: 0 | I69: 0 | J69: 0 | K69: 1 | L69: 0 | M69: 1
G70: Tab | H70: 0 | I70: 0 | J70: 1 | K70: 0 | L70: 0 | M70: 1
G71: Vevay | H71: 1 | I71: 0 | J71: 0 | K71: 0 | L71: 0 | M71: 1
G72: Vittoria | H72: 1 | I72: 0 | J72: 0 | K72: 0 | L72: 0 | M72: 1
G73: Washington | H73: 0 | I73: 0 | J73: 1 | K73: 0 | L73: 0 | M73: 1
G74: Wenona | H74: 0 | I74: 0 | J74: 1 | K74: 0 | L74: 0 | M74: 1
G75: Wes | H75: 1 | I75: 0 | J75: 0 | K75: 0 | L75: 0 | M75: 1
G76: Zebadiah | H76: 0 | I76: 0 | J76: 1 | K76: 0 | L76: 0 | M76: 1
G77: Total | H77: =SUM(H47:H76) -> 6 | I77: 6 | J77: 6 | K77: 6 | L77: 6 | M77: 30

Sheet Analysis
A1: Supporting analyses
A3: Description
A8: Results

Sheet Control
A1: Workbook control
A3: Constants | D3: Notes
A4: Boolean
A5: TRUE
A6: FALSE
A8: Derived values
